bitfinex/quotes_BTCUSD_20251010
["timestamp","ask_amount","ask_price","bid_price","bid_amount"]
[1760071782415,0.0011823,121270.0,121260.0,1.74264105]
[1760071782629,0.0011823,121270.0,121260.0,1.97608105]
[1760071784478,0.0011823,121270.0,121260.0,1.74264105]
[1760071784902,0.0011823,121270.0,121260.0,1.97608105]
[1760071785449,0.0011823,121270.0,121260.0,1.74264105]
[1760071785667,0.0011823,121270.0,121260.0,1.43724749]
[1760071789983,0.0011823,121270.0,121260.0,1.20380749]
[1760071790185,0.0011823,121270.0,121260.0,1.43724749]
[1760071790398,0.0011823,121270.0,121260.0,1.43720749]
[1760071794651,0.0011823,121270.0,121260.0,1.20380749]
[1760071794838,0.0011823,121270.0,121260.0,1.43720749]
[1760071795166,0.0011823,121270.0,121260.0,1.20380749]
[1760071795371,0.0011823,121270.0,121260.0,1.43720749]
[1760071796834,0.0011823,121270.0,121260.0,1.20380749]
[1760071797261,0.0011823,121270.0,121260.0,1.43720749]
[1760071798206,0.0011823,121270.0,121260.0,1.20380749]
[1760071798416,0.0011823,121270.0,121260.0,1.43720749]
[1760071799356,0.0011823,121270.0,121260.0,1.00638309]
[1760071799545,0.0011823,121270.0,121260.0,1.43720749]
[1760071802206,0.0011823,121270.0,121260.0,1.20380749]
[1760071802417,0.0011823,121270.0,121260.0,1.43720749]
[1760071805624,0.0011823,121270.0,121260.0,1.00638309]
[1760071805848,0.0011823,121270.0,121260.0,1.43720749]
[1760071806055,0.0011823,121270.0,121260.0,1.20380749]
[1760071806269,0.0011823,121270.0,121260.0,1.43720749]
[1760071806481,0.0011823,121270.0,121260.0,1.17365559]
[1760071806699,0.0011823,121270.0,121260.0,1.40705559]
[1760071807127,0.0011823,121270.0,121260.0,0.97623119]
[1760071807336,0.0011823,121270.0,121260.0,1.40705559]
[1760071807762,0.0011823,121270.0,121260.0,1.17365559]
[1760071808230,0.0011823,121270.0,121260.0,1.40705559]
[1760071812317,0.0011823,121270.0,121260.0,0.97623119]
[1760071812526,0.0011823,121270.0,121260.0,1.40705559]
[1760071816412,0.0011823,121270.0,121260.0,1.17365559]
[1760071816613,0.0011823,121270.0,121260.0,1.40701559]
[1760071816822,0.0011823,121270.0,121260.0,1.17365559]
[1760071817049,0.0011823,121270.0,121260.0,1.40701559]
[1760071817243,0.0011823,121270.0,121260.0,1.17365559]
[1760071817448,0.0011823,121270.0,121260.0,1.40701559]
[1760071818897,0.0011823,121270.0,121260.0,1.17365559]
[1760071819105,0.0011823,121270.0,121260.0,1.40701559]
[1760071822940,0.0011823,121270.0,121260.0,1.43716749]
[1760071823087,0.0011823,121270.0,121260.0,1.20380749]
[1760071823305,0.0011823,121270.0,121260.0,1.43716749]
[1760071827094,0.0011823,121270.0,121260.0,1.70476749]
[1760071828114,0.0011823,121270.0,121260.0,1.27394309]
[1760071828322,0.0011823,121270.0,121260.0,1.70476749]
[1760071833970,0.0011823,121270.0,121260.0,1.47140749]
[1760071834186,0.0011823,121270.0,121260.0,1.70476749]
[1760071840924,0.0011823,121270.0,121260.0,1.27394309]
[1760071841155,0.0011823,121270.0,121260.0,1.70472749]
[1760071842054,0.09372,121300.0,121290.0,0.16489405]
[1760071842284,0.25069092,121300.0,121290.0,0.31657551]
[1760071842528,0.48401092,121300.0,121290.0,0.31657551]
[1760071842970,0.48401092,121300.0,121290.0,0.34133645]
[1760071843881,0.48401092,121300.0,121290.0,0.31696645]
[1760071843882,0.26181092,121300.0,121290.0,0.31696645]
[1760071844124,0.50208092,121300.0,121290.0,0.1243724]
[1760071844609,0.49513092,121300.0,121290.0,0.1243724]
[1760071847150,0.50208092,121300.0,121290.0,0.1243724]
[1760071847361,0.49513092,121300.0,121290.0,0.1243724]
[1760071847778,0.4966767,121300.0,121290.0,0.1243724]
[1760071847983,0.2633567,121300.0,121290.0,0.1243724]
[1760071848194,0.916647,121300.0,121290.0,0.107883]
[1760071848413,1.149967,121300.0,121290.0,0.08312206]
[1760071848623,0.82679685,121300.0,121290.0,0.08312206]
[1760071851712,0.5036267,121300.0,121290.0,0.08312206]
[1760071851923,0.82679685,121300.0,121290.0,0.08312206]
[1760071852145,0.5036267,121300.0,121290.0,0.14349799]
[1760071852360,0.82679685,121300.0,121290.0,0.14349799]
[1760071854257,0.1845467,121300.0,121290.0,0.14349799]
[1760071854484,0.4966767,121300.0,121290.0,0.17055799]
[1760071854934,0.4966767,121300.0,121290.0,0.49372814]
[1760071855592,0.4966767,121300.0,121290.0,0.17055799]
[1760071855593,0.4109167,121300.0,121290.0,0.17055799]
[1760071855801,0.4966767,121300.0,121290.0,0.17055799]
[1760071857784,0.1775967,121300.0,121290.0,0.17055799]
[1760071857999,0.32063624,121300.0,121290.0,0.68138219]
[1760071859060,0.00159624,121300.0,121290.0,1.00455234]
[1760071859514,0.23487624,121300.0,121290.0,0.70614435]
[1760071860718,0.00159624,121300.0,121290.0,1.0293145]
[1760071861376,0.23487624,121300.0,121290.0,1.0293145]
[1760071861818,0.00159624,121300.0,121290.0,1.0293145]
[1760071862034,0.23487624,121300.0,121290.0,1.0293145]
[1760071862252,0.00159624,121300.0,121290.0,1.0293145]
[1760071862474,0.23487624,121300.0,121290.0,1.0293145]
[1760071862705,0.00159624,121300.0,121290.0,1.0293145]
[1760071862924,0.23487624,121300.0,121290.0,1.0293145]
[1760071874404,0.00159624,121300.0,121290.0,1.0293145]
[1760071874616,0.23483624,121300.0,121290.0,1.0293145]
[1760071875792,0.00159624,121300.0,121290.0,1.0293145]
[1760071875929,0.23483624,121300.0,121290.0,1.0293145]
[1760071877476,0.00159624,121300.0,121290.0,1.0293145]
[1760071877955,0.23483624,121300.0,121290.0,1.0293145]
[1760071884289,0.05065183,121300.0,121290.0,1.0293145]
[1760071887816,0.5200503,121320.0,121300.0,0.16487681]
[1760071888016,0.31896,121310.0,121300.0,0.52753026]
[1760071888221,0.31896,121310.0,121300.0,0.52707222]
[1760071888470,0.31896,121310.0,121300.0,0.55006222]
[1760071889029,0.31896,121310.0,121300.0,0.87323237]
[1760071889229,0.31896,121310.0,121300.0,0.89799184]
[1760071891545,0.49494687,121310.0,121300.0,0.87500184]
[1760071891956,0.49494687,121310.0,121300.0,0.9581239]
[1760071893491,0.49546202,121310.0,121300.0,0.9581239]
[1760071894563,0.33059515,121310.0,121300.0,0.9581239]
[1760071895170,0.09739515,121310.0,121300.0,0.9581239]
[1760071895376,0.08627515,121310.0,121300.0,0.9827939]
[1760071895584,0.31947515,121310.0,121300.0,0.9827939]
[1760071895786,0.33059515,121310.0,121300.0,0.9581239]
[1760071895991,0.09739515,121310.0,121300.0,0.9581239]
[1760071896193,0.33059515,121310.0,121300.0,0.9581239]
[1760071896430,0.49546202,121310.0,121300.0,0.9581239]
[1760071900796,0.49546202,121310.0,121300.0,0.3117836]
[1760071901011,0.49546202,121310.0,121300.0,0.9581239]
[1760071902481,0.33059515,121310.0,121300.0,0.9581239]
[1760071902711,0.49546202,121310.0,121300.0,0.9581239]
[1760071904093,0.49546202,121310.0,121300.0,0.9827939]
[1760071904303,0.49546202,121310.0,121300.0,0.9581239]
[1760071904476,0.39854202,121310.0,121300.0,0.9827939]
[1760071905850,0.16538202,121310.0,121300.0,0.9827939]
[1760071906086,0.39854202,121310.0,121300.0,0.9827939]
[1760071906297,0.00051515,121310.0,121300.0,0.9827939]
[1760071906508,0.00051515,121310.0,121300.0,1.30596405]
[1760071906697,0.23367515,121310.0,121300.0,0.9827939]
[1760071909478,0.00051515,121310.0,121300.0,0.9827939]
[1760071909720,0.23316,121310.0,121300.0,0.7671276]
[1760071909928,0.16721024,121320.0,121300.0,0.7671276]
[1760071910147,0.23316,121310.0,121300.0,0.25333154]
[1760071910362,0.23316,121310.0,121300.0,0.65924607]
[1760071910820,0.16721024,121320.0,121300.0,0.65933415]
[1760071911030,0.16721024,121320.0,121300.0,0.22866015]
[1760071911255,0.23316,121310.0,121300.0,0.22866015]
[1760071911458,0.23316,121310.0,121300.0,0.20390207]
[1760071911668,0.16721024,121320.0,121300.0,0.20390207]
[1760071911876,0.23316,121310.0,121300.0,0.20390207]
[1760071912089,0.23316,121310.0,121300.0,0.25129015]
[1760071912614,0.16721024,121320.0,121300.0,0.25129015]
[1760071912763,0.23316,121310.0,121300.0,0.25129015]
[1760071913099,0.23316,121310.0,121300.0,0.22653207]
[1760071913332,0.23316,121310.0,121300.0,0.25129015]
[1760071913557,0.23316,121310.0,121300.0,0.33441221]
[1760071914085,0.23316,121310.0,121300.0,0.76508621]
[1760071917845,0.05706366,121310.0,121300.0,0.76508621]
[1760071919353,0.16486687,121310.0,121300.0,0.1184654]
[1760071919581,0.39798687,121310.0,121300.0,0.28334586]
[1760071920228,0.39798687,121310.0,121300.0,0.1184654]
[1760071920435,0.39798687,121310.0,121300.0,0.28334586]
[1760071922278,0.20730488,121310.0,121300.0,0.28334586]
[1760071922929,0.23312,121310.0,121300.0,0.28334586]
[1760071923145,0.23312,121310.0,121300.0,0.29877586]
[1760071924242,0.08145024,121320.0,121310.0,0.16486687]
[1760071924493,0.08145024,121320.0,121310.0,0.2979042]
[1760071924728,0.40084533,121320.0,121310.0,0.2979042]
[1760071925649,0.40084533,121320.0,121310.0,0.13303733]
[1760071926952,0.16772533,121320.0,121310.0,0.13303733]
[1760071927172,0.40084533,121320.0,121310.0,0.13303733]
[1760071927390,0.31508533,121320.0,121310.0,0.13303733]
[1760071927621,0.40084533,121320.0,121310.0,0.13303733]
[1760071934226,0.08196533,121320.0,121310.0,0.2979042]
[1760071934447,0.40080533,121320.0,121310.0,0.2979042]
[1760071936431,0.31504533,121320.0,121310.0,0.3137542]
[1760071936638,0.40080533,121320.0,121310.0,0.3137542]
[1760071937544,0.16772533,121320.0,121310.0,0.3137542]
[1760071937789,0.48420837,121320.0,121310.0,0.3254742]
[1760071938668,0.48420837,121320.0,121310.0,0.3492642]
[1760071939746,0.48420837,121320.0,121310.0,0.3254742]
[1760071940166,0.48420837,121320.0,121310.0,0.3492642]
[1760071940834,0.48420837,121320.0,121310.0,0.3254742]
[1760071941083,0.16536837,121320.0,121310.0,0.3254742]
[1760071941304,0.48420837,121320.0,121310.0,0.3492642]
[1760071941516,0.48420837,121320.0,121310.0,0.3254742]
[1760071942788,0.16536837,121320.0,121310.0,0.3254742]
[1760071943016,0.48420837,121320.0,121310.0,0.3254742]
[1760071943466,0.48420837,121320.0,121310.0,0.3137542]
[1760071944339,0.48420837,121320.0,121310.0,0.2979042]
[1760071944542,0.48420837,121320.0,121310.0,0.13303733]
[1760071945048,0.25112837,121320.0,121310.0,0.13303733]
[1760071945238,0.48420837,121320.0,121310.0,0.13303733]
[1760071945449,0.30373134,121320.0,121310.0,0.13303733]
[1760071945659,0.46858462,121320.0,121310.0,0.13303733]
[1760071946079,0.23550462,121320.0,121310.0,0.13303733]
[1760071946292,0.46858462,121320.0,121310.0,0.13303733]
[1760071953408,0.16485328,121320.0,121310.0,0.2979042]
[1760071953573,0.48365328,121320.0,121310.0,0.3256742]
[1760071953972,0.25061328,121320.0,121310.0,0.16080733]
[1760071954306,0.16485328,121320.0,121310.0,0.16080733]
[1760071954515,0.48365328,121320.0,121310.0,0.16080733]
[1760071955907,0.16485328,121320.0,121310.0,0.16080733]
[1760071956093,0.48365328,121320.0,121310.0,0.16080733]
[1760071956885,0.16485328,121320.0,121310.0,0.16080733]
[1760071957069,0.39789328,121320.0,121310.0,0.18532733]
[1760071957319,0.25061328,121320.0,121310.0,0.16080733]
[1760071957532,0.48365328,121320.0,121310.0,0.16080733]
[1760071959229,0.48365328,121320.0,121310.0,0.13303733]
[1760071960301,0.48365328,121320.0,121310.0,0.08312206]
[1760071971496,0.80671778,121320.0,121310.0,0.08312206]
[1760071972103,0.48365328,121320.0,121310.0,0.08312206]
[1760071972878,0.25061328,121320.0,121310.0,0.08312206]
[1760071973135,0.48361328,121320.0,121310.0,0.11127206]
[1760071973351,0.48361328,121320.0,121310.0,0.17832202]
[1760071973567,0.16485328,121320.0,121310.0,0.17832202]
[1760071973770,0.48361328,121320.0,121310.0,0.17832202]
[1760071973982,0.39785328,121320.0,121310.0,0.20285202]
[1760071974233,0.48361328,121320.0,121310.0,0.20285202]
[1760071974444,0.39785328,121320.0,121310.0,0.20285202]
[1760071974669,0.48361328,121320.0,121310.0,0.52591652]
[1760071975067,0.16485328,121320.0,121310.0,0.52591652]
[1760071975286,0.48361328,121320.0,121310.0,0.52591652]
[1760071975491,0.25061328,121320.0,121310.0,0.52591652]
[1760071975697,0.48361328,121320.0,121310.0,0.52591652]
[1760071979286,0.48361328,121320.0,121310.0,0.20285202]
[1760071979505,0.48361328,121320.0,121310.0,0.52591652]
[1760071981848,0.27961309,121320.0,121310.0,0.52591652]
[1760071982064,0.44446637,121320.0,121310.0,0.52591652]
[1760071982292,0.21146637,121320.0,121310.0,0.50138652]
[1760071982501,0.21146637,121320.0,121310.0,0.17832202]
[1760071982718,0.44446637,121320.0,121310.0,0.17832202]
[1760071982940,0.44446637,121320.0,121310.0,0.20285202]
[1760071983994,0.44446637,121320.0,121310.0,0.17832202]
[1760071984217,0.44446637,121320.0,121310.0,0.50138652]
[1760071984640,0.44446637,121320.0,121310.0,0.52556652]
[1760071985277,0.39785328,121320.0,121310.0,0.52556652]
[1760071985526,0.48361328,121320.0,121310.0,0.52556652]
[1760071987537,0.25061328,121320.0,121310.0,0.69043339]
[1760071987749,0.48357328,121320.0,121310.0,0.69043339]
[1760071988216,0.48357328,121320.0,121310.0,0.52556652]
[1760071991304,0.3402,121330.0,121320.0,0.16485328]
[1760071991524,0.00028315,121330.0,121320.0,0.97194807]
[1760071991738,0.00028315,121330.0,121320.0,0.95546275]
[1760071991956,0.23324315,121330.0,121320.0,0.95546275]
[1760071994870,0.00028315,121330.0,121320.0,0.95546275]
[1760071995088,0.23324315,121330.0,121320.0,0.95546275]
[1760071996436,0.00028315,121330.0,121320.0,0.95546275]
[1760071996652,0.23324315,121330.0,121320.0,0.95546275]
[1760071996874,0.00028315,121330.0,121320.0,0.95546275]
[1760071997100,0.23375817,121330.0,121320.0,0.95546275]
[1760071997358,0.23375817,121330.0,121320.0,0.98021719]
[1760071998227,0.00079817,121330.0,121320.0,0.98021719]
[1760071998440,0.23375817,121330.0,121320.0,0.98021719]
[1760071998658,0.23371817,121330.0,121320.0,0.98021719]
[1760072001524,0.00079817,121330.0,121320.0,0.98021719]
[1760072001728,0.23371817,121330.0,121320.0,0.98021719]
[1760072005469,0.00079817,121330.0,121320.0,0.98021719]
[1760072005658,0.23371817,121330.0,121320.0,0.98021719]
[1760072006540,0.00079817,121330.0,121320.0,0.98021719]
[1760072006748,0.23371817,121330.0,121320.0,0.98021719]
[1760072007596,0.00079817,121330.0,121320.0,0.98021719]
[1760072007807,0.23371817,121330.0,121320.0,0.98021719]
[1760072008236,0.00079817,121330.0,121320.0,0.98021719]
[1760072008486,0.00079817,121330.0,121320.0,1.30328169]
[1760072008704,0.00079817,121330.0,121320.0,1.53620169]
[1760072009306,0.00079817,121330.0,121320.0,1.30328169]
[1760072009496,0.00079817,121330.0,121320.0,1.53620169]
[1760072009892,0.00079817,121330.0,121320.0,1.30328169]
[1760072010311,0.00079817,121330.0,121320.0,1.53616169]
[1760072010916,0.00079817,121330.0,121320.0,1.21309719]
[1760072011208,0.00079817,121330.0,121320.0,1.53616169]
[1760072011422,0.00079817,121330.0,121320.0,1.53716169]
[1760072012265,0.00079817,121330.0,121320.0,1.53816169]
[1760072013566,0.00079817,121330.0,121320.0,1.30528169]
[1760072013797,0.00079817,121330.0,121320.0,1.53716169]
[1760072016450,0.00079817,121330.0,121320.0,1.53816169]
[1760072016669,0.00079817,121330.0,121320.0,1.64528169]
[1760072017117,0.00079817,121330.0,121320.0,1.87816169]
[1760072018863,0.00079817,121330.0,121320.0,2.84735519]
[1760072019070,0.00079817,121330.0,121320.0,1.87816169]
[1760072021209,0.00079817,121330.0,121320.0,1.64528169]
[1760072021413,0.00079817,121330.0,121320.0,1.87812169]
[1760072021643,0.00079817,121330.0,121320.0,1.64528169]
[1760072022459,0.00079817,121330.0,121320.0,1.87812169]
[1760072024930,0.00079817,121330.0,121320.0,1.64528169]
[1760072025410,0.00079817,121330.0,121320.0,1.87812169]
[1760072025628,0.00079817,121330.0,121320.0,1.64528169]
[1760072025844,0.00079817,121330.0,121320.0,1.87812169]
[1760072027383,0.00079817,121330.0,121320.0,1.64528169]
[1760072027589,0.00079817,121330.0,121320.0,1.87812169]
[1760072028066,0.00079817,121330.0,121320.0,1.87808169]
[1760072031543,0.00079817,121330.0,121320.0,1.76969117]
[1760072033677,0.00079817,121330.0,121320.0,1.53689117]
[1760072033892,0.00079817,121330.0,121320.0,1.76969117]
[1760072035615,0.00079817,121330.0,121320.0,1.10648968]
[1760072035839,0.00079817,121330.0,121320.0,1.33928968]
[1760072039857,0.00079817,121330.0,121320.0,0.90888819]
[1760072040082,0.00079817,121330.0,121320.0,1.33928968]
[1760072040729,0.00079817,121330.0,121320.0,1.10648968]
[1760072040985,0.00079817,121330.0,121320.0,1.33928968]
[1760072046363,0.00079817,121330.0,121320.0,1.53689117]
[1760072046730,0.00079817,121330.0,121320.0,1.76969117]
[1760072047156,0.00079817,121330.0,121320.0,1.53689117]
[1760072047380,0.00079817,121330.0,121320.0,1.76969117]
[1760072062400,0.00079817,121330.0,121320.0,1.76965117]
[1760072063160,0.00079817,121330.0,121320.0,1.53689117]
[1760072063378,0.00079817,121330.0,121320.0,1.76965117]
[1760072066116,0.09739994,121360.0,121350.0,0.16481252]
[1760072066418,0.09739994,121360.0,121350.0,0.73865879]
[1760072066419,0.09748308,121360.0,121350.0,0.73865879]
[1760072066855,0.08924314,121360.0,121350.0,0.73865879]
[1760072067106,8.314e-05,121360.0,121350.0,0.76317879]
[1760072067304,0.23284314,121360.0,121350.0,0.76317879]
[1760072068500,0.23284314,121360.0,121350.0,0.77111445]
[1760072068934,0.23284314,121360.0,121350.0,0.74659445]
[1760072071779,0.23438778,121360.0,121350.0,0.74659445]
[1760072074451,0.00162778,121360.0,121350.0,0.74659445]
[1760072074681,0.00162778,121360.0,121350.0,0.76915445]
[1760072074925,0.00162778,121360.0,121350.0,0.79390191]
[1760072078098,0.16642672,121360.0,121350.0,0.31358042]
[1760072078542,0.16642672,121360.0,121350.0,0.32984042]
[1760072078716,0.16642672,121360.0,121350.0,0.34116042]
[1760072079139,0.39918672,121360.0,121350.0,0.79412191]
[1760072079342,0.16642672,121360.0,121350.0,0.79412191]
[1760072079553,0.16642672,121360.0,121350.0,0.32490042]
[1760072079831,0.39918672,121360.0,121350.0,0.31358042]
[1760072080175,0.39918672,121360.0,121350.0,0.32984042]
[1760072081288,0.39918672,121360.0,121350.0,0.1650279]
[1760072081941,0.39918672,121360.0,121350.0,0.32984042]
[1760072082668,0.16642672,121360.0,121350.0,0.32984042]
[1760072082870,0.39918672,121360.0,121350.0,0.32984042]
[1760072083225,0.39918672,121360.0,121350.0,0.34116042]
[1760072084359,0.39918672,121360.0,121350.0,0.36372042]
[1760072084650,0.39918672,121360.0,121350.0,0.34116042]
[1760072085056,0.39918672,121360.0,121350.0,0.77156191]
[1760072086572,0.00162778,121360.0,121350.0,0.79428191]
[1760072086802,0.23438778,121360.0,121350.0,0.79428191]
[1760072089057,0.00162778,121360.0,121350.0,0.79428191]
[1760072089264,0.23438778,121360.0,121350.0,0.79428191]
[1760072092619,0.00162778,121360.0,121350.0,0.79428191]
[1760072092830,0.23438778,121360.0,121350.0,0.79428191]
[1760072093483,0.00162778,121360.0,121350.0,0.79428191]
[1760072093699,0.00162778,121360.0,121350.0,0.66392331]
[1760072093700,0.39918672,121360.0,121350.0,0.66392331]
[1760072094762,0.23438778,121360.0,121350.0,0.66392331]
[1760072095611,0.16642672,121360.0,121350.0,0.63634331]
[1760072095823,0.48918961,121360.0,121350.0,0.1487679]
[1760072096029,0.39914672,121360.0,121350.0,0.28883296]
[1760072096209,0.39914672,121360.0,121350.0,0.61159585]
[1760072099270,0.16642672,121360.0,121350.0,0.61159585]
[1760072099480,0.39914672,121360.0,121350.0,0.63822585]
[1760072099697,0.23434778,121360.0,121350.0,0.63822585]
[1760072099924,0.23434778,121360.0,121350.0,0.31546296]
[1760072100136,0.23434778,121360.0,121350.0,0.63822585]
[1760072100346,0.39914672,121360.0,121350.0,0.31546296]
[1760072100566,0.39914672,121360.0,121350.0,0.63822585]
[1760072101606,0.16642672,121360.0,121350.0,0.63822585]
[1760072101826,0.39914672,121360.0,121350.0,0.63822585]
[1760072109033,0.16642672,121360.0,121350.0,0.63822585]
[1760072109248,0.39914672,121360.0,121350.0,0.63822585]
[1760072111869,0.39914672,121360.0,121350.0,0.31546296]
[1760072112090,0.39914672,121360.0,121350.0,0.63822585]
[1760072115452,0.39914672,121360.0,121350.0,0.66297482]
[1760072116794,0.39914672,121360.0,121350.0,0.68679482]
[1760072118374,0.16642672,121360.0,121350.0,0.34021193]
[1760072118552,0.39914672,121360.0,121350.0,0.66297482]
[1760072121494,0.16642672,121360.0,121350.0,0.14083375]
[1760072121715,0.72190961,121360.0,121350.0,0.10787103]
[1760072121921,1.39239908,121360.0,121350.0,0.10787103]
[1760072122132,1.09438777,121360.0,121350.0,0.10787103]
[1760072122546,1.18443066,121360.0,121350.0,0.10787103]
[1760072122991,1.41715066,121360.0,121350.0,0.10787103]
[1760072123367,1.41715066,121360.0,121350.0,0.08312206]
[1760072123976,1.18443066,121360.0,121350.0,0.08312206]
[1760072124211,1.41715066,121360.0,121350.0,0.08312206]
[1760072124626,1.09438777,121360.0,121350.0,0.08312206]
[1760072124811,1.41715066,121360.0,121350.0,0.08312206]
[1760072125563,1.18443066,121360.0,121350.0,0.08312206]
[1760072125769,1.41715066,121360.0,121350.0,0.08312206]
[1760072126528,1.18443066,121360.0,121350.0,0.08312206]
[1760072126735,1.41715066,121360.0,121350.0,0.08312206]
[1760072130418,1.49714746,121360.0,121350.0,0.08312206]
[1760072130648,0.16483969,121330.0,121320.0,0.00966841]
[1760072130859,0.39755969,121330.0,121320.0,0.09279047]
[1760072131501,0.39755969,121330.0,121320.0,0.10104523]
[1760072132762,0.39755969,121330.0,121320.0,0.10204523]
[1760072134310,0.16483969,121330.0,121320.0,0.09379047]
[1760072134529,0.42231619,121330.0,121320.0,0.09379047]
[1760072134726,0.42231619,121330.0,121320.0,0.09279047]
[1760072135134,0.42231619,121330.0,121320.0,0.09379047]
[1760072135571,0.42231619,121330.0,121320.0,0.09279047]
[1760072137766,0.74507908,121330.0,121320.0,0.09279047]
[1760072137904,0.51235908,121330.0,121320.0,0.09279047]
[1760072138117,0.74507908,121330.0,121320.0,0.09279047]
[1760072138328,0.42231619,121330.0,121320.0,0.09279047]
[1760072138539,1.08507908,121330.0,121320.0,0.08312206]
[1760072138736,0.85235908,121330.0,121320.0,0.08312206]
[1760072138953,1.08507908,121330.0,121320.0,0.08312206]
[1760072139400,0.76231619,121330.0,121320.0,0.08312206]
[1760072139916,1.17079908,121330.0,121320.0,0.08312206]
[1760072141092,0.93807908,121330.0,121320.0,0.08312206]
[1760072141314,0.61535619,121330.0,121320.0,0.09157193]
[1760072141576,0.80608258,121330.0,121320.0,0.09157193]
[1760072142007,0.57336258,121330.0,121320.0,0.09157193]
[1760072142229,0.80612258,121330.0,121320.0,0.09157193]
[1760072142430,0.51236197,121330.0,121320.0,0.09157193]
[1760072142635,0.50811908,121330.0,121320.0,0.09157193]
[1760072142884,0.83088197,121330.0,121320.0,0.09157193]
[1760072143491,0.51236197,121330.0,121320.0,0.09157193]
[1760072143855,0.83088197,121330.0,121320.0,0.09157193]
[1760072145780,0.74512197,121330.0,121320.0,0.09157193]
[1760072145994,0.83088197,121330.0,121320.0,0.09157193]
[1760072146422,0.83858307,121330.0,121320.0,0.09157193]
[1760072149994,0.83858307,121330.0,121320.0,0.08312206]
[1760072150402,0.75282307,121330.0,121320.0,0.08312206]
[1760072150815,0.83858307,121330.0,121320.0,0.08312206]
[1760072151430,0.52006307,121330.0,121320.0,0.08312206]
[1760072151641,0.83858307,121330.0,121320.0,0.08312206]
[1760072151843,0.83858307,121330.0,121320.0,0.1403348]
[1760072152045,0.19730018,121330.0,121320.0,0.1403348]
[1760072152252,0.83858307,121330.0,121320.0,0.1403348]
[1760072152908,0.83858307,121330.0,121320.0,0.08312206]
[1760072155577,0.51582018,121330.0,121320.0,0.08312206]
[1760072160175,0.28306018,121330.0,121320.0,0.08312206]
[1760072160389,0.51582018,121330.0,121320.0,0.08312206]
[1760072163849,0.19730018,121330.0,121320.0,0.08312206]
[1760072164063,0.51582018,121330.0,121320.0,0.08312206]
[1760072164279,0.51582018,121330.0,121320.0,0.10805851]
[1760072165368,0.19730018,121330.0,121320.0,0.10805851]
[1760072165569,0.51582018,121330.0,121320.0,0.10805851]
[1760072166000,0.51582018,121330.0,121320.0,0.08312206]
[1760072166955,0.30864211,121330.0,121320.0,0.08312206]
[1760072167176,0.4734818,121330.0,121320.0,0.08312206]
[1760072167778,0.18959908,121330.0,121320.0,0.08312206]
[1760072168046,0.50811908,121330.0,121320.0,0.08312206]
[1760072168492,0.08576,121330.0,121320.0,0.76323918]
[1760072168698,0.31852,121330.0,121320.0,0.79876918]
[1760072169371,0.31852,121330.0,121320.0,0.82352581]
[1760072170066,0.31852,121330.0,121320.0,0.79939581]
[1760072170725,0.31852,121330.0,121320.0,0.82352581]
[1760072174490,0.25059969,121330.0,121320.0,0.60772253]
[1760072174730,0.48335969,121330.0,121320.0,0.60772253]
[1760072174932,0.48335969,121330.0,121320.0,0.78799581]
[1760072175116,0.48335969,121330.0,121320.0,0.76323918]
[1760072176389,0.48335969,121330.0,121320.0,0.33254156]
[1760072176795,0.25059969,121330.0,121320.0,0.33254156]
[1760072177034,0.48335969,121330.0,121320.0,0.33254156]
[1760072177292,0.48335969,121330.0,121320.0,0.16768828]
[1760072177540,0.48335969,121330.0,121320.0,0.33254156]
[1760072179302,0.48335969,121330.0,121320.0,0.31712156]
[1760072179699,0.48331969,121330.0,121320.0,0.15226828]
[1760072183176,0.48331969,121330.0,121320.0,0.33291156]
[1760072183627,0.25059969,121330.0,121320.0,0.33291156]
[1760072183848,0.48331969,121330.0,121320.0,0.34468156]
[1760072185490,0.48331969,121330.0,121320.0,0.77537918]
[1760072186697,0.16483969,121330.0,121320.0,0.79988918]
[1760072187008,0.48331969,121330.0,121320.0,0.79988918]
[1760072187237,0.48331969,121330.0,121320.0,0.36919156]
[1760072187424,0.48331969,121330.0,121320.0,0.79988918]
[1760072188388,0.48331969,121330.0,121320.0,0.77537918]
[1760072189945,0.48331969,121330.0,121320.0,0.17982828]
[1760072190161,0.48331969,121330.0,121320.0,0.15226828]
[1760072193004,0.25059969,121330.0,121320.0,0.16805828]
[1760072193224,0.48331969,121330.0,121320.0,0.16805828]
[1760072193444,0.25059969,121330.0,121320.0,0.34496156]
[1760072193718,0.48331969,121330.0,121320.0,0.36900156]
[1760072193929,0.48331969,121330.0,121320.0,0.34496156]
[1760072194792,0.48331969,121330.0,121320.0,0.77565918]
[1760072195202,0.48331969,121330.0,121320.0,0.6108059]
[1760072196058,0.48331969,121330.0,121320.0,0.77565918]
[1760072196496,0.48331969,121330.0,121320.0,0.79969918]
[1760072197133,0.48331969,121330.0,121320.0,0.77565918]
[1760072199328,0.48331969,121330.0,121320.0,0.34496156]
[1760072199542,0.48331969,121330.0,121320.0,0.77565918]
[1760072203432,0.48331969,121330.0,121320.0,0.18010828]
[1760072204487,0.48331969,121330.0,121320.0,0.16431828]
[1760072209181,0.48331969,121330.0,121320.0,0.17978828]
[1760072212291,0.48331969,121330.0,121320.0,0.16431828]
[1760072212527,0.25059969,121330.0,121320.0,0.08312206]
[1760072212746,0.25059969,121330.0,121320.0,0.09859206]
[1760072212952,0.25059969,121330.0,121320.0,0.27486534]
[1760072213178,0.48327969,121330.0,121320.0,0.29746534]
[1760072215330,0.48327969,121330.0,121320.0,0.27486534]
[1760072215615,0.48327969,121330.0,121320.0,0.35486214]
[1760072217521,0.48327969,121330.0,121320.0,0.6778148]
[1760072217950,0.48327969,121330.0,121320.0,0.7004148]
[1760072218451,0.48327969,121330.0,121320.0,0.6778148]
[1760072224657,0.48327969,121330.0,121320.0,0.51296152]
[1760072224863,0.25059969,121330.0,121320.0,0.19000886]
[1760072225079,0.48327969,121330.0,121320.0,0.40607472]
[1760072226262,0.25059969,121330.0,121320.0,0.42142472]
[1760072226482,0.48327969,121330.0,121320.0,0.42142472]
[1760072226712,0.25059969,121330.0,121320.0,0.42142472]
[1760072226936,0.48327969,121330.0,121320.0,0.42142472]
[1760072227152,0.48327969,121330.0,121320.0,0.4861261]
[1760072229925,0.48327969,121330.0,121320.0,0.66228938]
[1760072229926,0.16483969,121330.0,121320.0,0.66228938]
[1760072230132,0.48327969,121330.0,121320.0,0.66228938]
[1760072232761,0.16483969,121330.0,121320.0,1.00843204]
[1760072232964,0.48327969,121330.0,121320.0,1.00843204]
[1760072234305,0.16483969,121330.0,121320.0,1.00843204]
[1760072234503,0.39751969,121330.0,121320.0,1.00843204]
[1760072234924,0.23268,121330.0,121320.0,1.00843204]
[1760072236379,0.00051497,121340.0,121320.0,1.35614133]
[1760072236603,0.00051497,121340.0,121330.0,0.92166103]
[1760072236817,0.09463497,121340.0,121330.0,1.00836387]
[1760072237035,0.09463497,121340.0,121330.0,1.02371387]
[1760072237227,0.09463497,121340.0,121330.0,1.04846727]
[1760072237678,0.23315497,121340.0,121330.0,1.04846727]
[1760072238193,0.00051497,121340.0,121330.0,1.04846727]
[1760072238639,0.23315497,121340.0,121330.0,1.04846727]
[1760072239085,0.00051497,121340.0,121330.0,1.04846727]
[1760072244277,0.00051497,121340.0,121330.0,1.28110727]
[1760072244523,0.00051497,121340.0,121330.0,1.37141993]